bitfinex/quotes_SOLUSD_20230120
["timestamp","ask_amount","ask_price","bid_price","bid_amount"]
[1674248103339,31.0,24.197,24.174,2.60163]
[1674248103571,17.96,24.196,24.173,10.0]
[1674248103757,31.0,24.195,24.173,10.0]
[1674248103968,23.48,24.18,24.131,31.09]
[1674248104183,37.96,24.194,24.14,23.48]
[1674248104184,31.02,24.179,24.14,23.48]
[1674248104396,31.02,24.179,24.13,237.95339773]
[1674248104397,0.96,24.179,24.144,11.0495852]
[1674248104614,0.96,24.179,24.145,2.60476]
[1674248104615,31.03,24.178,24.145,2.60476]
[1674248104929,23.48,24.17,24.145,2.60476]
[1674248105144,31.04,24.169,24.145,1.60476]
[1674248105550,31.03,24.178,24.145,1.60476]
[1674248105756,20.0,24.177,24.146,11.0495852]
[1674248105962,93.71,24.2,24.147,2.60454]
[1674248105963,31.03,24.176,24.147,2.60454]
[1674248106173,31.02,24.185,24.147,2.60454]
[1674248106403,31.01,24.188,24.148,42.1095852]
[1674248106615,31.01,24.188,24.149,2.60433]
[1674248106829,23.48,24.18,24.149,2.60433]
[1674248107042,23.48,24.17,24.164,10.0]
[1674248107364,31.04,24.169,24.149,2.60433]
[1674248107972,0.96,24.168,24.149,2.60433]
[1674248108195,31.04,24.167,24.154,10.0]
[1674248108405,31.02,24.179,24.155,2.60368]
[1674248108622,31.01,24.188,24.155,2.60368]
[1674248108811,31.01,24.188,24.155,13.6532652]
[1674248109143,23.48,24.17,24.155,2.60368]
[1674248109462,54.79576951,24.169,24.156,2.60357]
[1674248109659,74.79576951,24.169,24.141,10.0]
[1674248109872,51.04,24.169,24.141,10.0]
[1674248110071,31.04,24.169,24.141,10.0]
[1674248110288,2.61826,24.168,24.143,5.26862225]
[1674248110495,2.61826,24.168,24.142,42.1195852]
[1674248110496,2.61826,24.168,24.144,31.07]
[1674248110705,31.01,24.188,24.144,11.0495852]
[1674248110921,31.01,24.188,24.145,11.0495852]
[1674248111131,23.27,24.18,24.145,11.0495852]
[1674248111344,31.02,24.179,24.146,2.60465]
[1674248111564,31.01,24.188,24.145,11.0495852]
[1674248111761,23.48,24.18,24.147,10.70588143]
[1674248111971,23.48,24.18,24.141,10.0]
[1674248111972,53.63826,24.179,24.148,10.0]
[1674248112179,23.48,24.17,24.148,10.0]
[1674248112392,23.48,24.16,24.141,10.0]
[1674248112609,51.05,24.159,24.141,10.0]
[1674248112822,2.61826,24.158,24.141,10.0]
[1674248113022,32.01,24.157,24.141,10.0]
[1674248113230,37.0,24.156,24.138,10.0]
[1674248113433,32.02,24.155,24.138,10.0]
[1674248113648,37.0,24.154,24.138,10.0]
[1674248113870,32.02,24.153,24.138,10.0]
[1674248114072,37.0,24.152,24.138,10.0]
[1674248114279,23.48,24.15,24.123,10.0]
[1674248114504,32.02,24.151,24.123,10.0]
[1674248114505,23.48,24.14,24.123,10.0]
[1674248114817,23.48,24.13,24.123,10.0]
[1674248115033,31.09,24.129,24.081,31.15]
[1674248115219,2.61826,24.127,24.081,31.15]
[1674248115426,31.09,24.126,24.081,7.3877722]
[1674248115668,2.61826,24.124,24.111,10.0]
[1674248116060,0.96,24.123,24.111,10.0]
[1674248116267,2.61826,24.122,24.111,10.0]
[1674248116500,32.06,24.121,24.111,10.0]
[1674248116714,2.61826,24.12,24.111,10.0]
[1674248119424,2.61826,24.12,24.114,10.0]
[1674248120605,31.07,24.147,24.114,10.0]
[1674248120817,2.61826,24.146,24.115,41.81588143]
[1674248121122,10.0,24.129,24.115,31.11]
[1674248121341,2.61826,24.128,24.116,20.0]
[1674248121653,7.382,24.127,24.117,49.06]
[1674248121863,10.0,24.138,24.118,20.0]
[1674248122175,10.0,24.138,24.13,23.48]
[1674248122377,10.0,24.133,24.121,31.1]
[1674248122577,10.0,24.138,24.122,37.96]
[1674248122800,10.0,24.138,24.131,10.70588143]
[1674248123006,10.0,24.149,24.132,51.08]
[1674248123220,2.61826,24.148,24.132,20.0]
[1674248123546,12.61826,24.148,24.123,31.1]
[1674248123757,67.43402951,24.148,24.112,10.0]
[1674248123952,12.61826,24.148,24.121,10.70588143]
[1674248124168,12.61826,24.148,24.122,20.0]
[1674248124375,32.03,24.147,24.122,20.0]
[1674248124703,22.61826,24.146,24.113,31.11]
[1674248124911,10.0,24.134,24.112,10.0]
[1674248125106,2.61826,24.133,24.113,20.0]
[1674248125308,2.61826,24.133,24.113,30.70588143]
[1674248125523,2.61826,24.133,24.112,10.0]
[1674248125742,22.61826,24.133,24.112,10.0]
[1674248125943,17.96,24.132,24.112,10.0]
[1674248126152,17.96,24.132,24.113,20.0]
[1674248126153,2.61826,24.131,24.113,20.0]
[1674248126359,0.96,24.13,24.113,20.0]
[1674248126574,2.61826,24.129,24.116,10.0]
[1674248126783,43.65678965,24.141,24.116,10.0]
[1674248127005,2.61826,24.14,24.116,10.0]
[1674248127641,31.08,24.139,24.12,10.0]
[1674248127850,2.61826,24.138,24.12,10.0]
[1674248128050,31.08,24.137,24.12,10.0]
[1674248128259,31.07,24.145,24.12,10.0]
[1674248128477,31.06,24.153,24.12,33.48]
[1674248128689,142.2672,24.163,24.133,10.0]
[1674248128900,2.61826,24.162,24.133,10.0]
[1674248129108,2.61826,24.162,24.133,23.54568963]
[1674248129514,10.0,24.147,24.133,10.0]
[1674248129748,33.66826,24.162,24.133,10.0]
[1674248129945,33.66826,24.162,24.134,13.54568963]
[1674248130289,10.0,24.145,24.134,13.54568963]
[1674248130480,10.0,24.145,24.133,10.0]
[1674248131103,41.07,24.145,24.133,10.0]
[1674248131309,20.0,24.144,24.133,10.0]
[1674248131739,17.96,24.143,24.133,10.0]
[1674248131932,53.68826,24.142,24.133,10.0]
[1674248132142,2.61826,24.142,24.133,10.0]
[1674248132693,20.0,24.152,24.133,10.0]
[1674248133095,23.27,24.16,24.133,10.0]
[1674248133299,23.27,24.16,24.122,10.0]
[1674248133300,53.66826,24.159,24.131,10.0]
[1674248133621,2.61826,24.158,24.131,10.0]
[1674248133829,31.05,24.157,24.131,10.0]
[1674248134052,23.48,24.14,24.109,10.0]
[1674248134266,4.95000271,24.119,24.082,10.0]
[1674248134471,5.90814364,24.117,24.082,10.0]
[1674248134686,23.48,24.11,24.082,10.0]
[1674248134894,51.68826,24.109,24.082,10.0]
[1674248135104,22.61826,24.108,24.082,10.0]
[1674248135431,51.69826,24.107,24.082,10.0]
[1674248135643,2.61826,24.106,24.082,10.0]
[1674248136045,60.39003916,24.117,24.09,23.27]
[1674248136258,2.61826,24.116,24.1,23.48]
[1674248136477,23.48,24.14,24.13,10.0]
[1674248136686,23.48,24.14,24.084,10.0]
[1674248136687,23.75576951,24.138,24.095,13.54568963]
[1674248136895,33.36123,24.137,24.084,10.0]
[1674248137109,2.28123,24.136,24.084,10.0]
[1674248137308,31.08,24.135,24.084,23.54568963]
[1674248137520,2.28123,24.134,24.093,13.54568963]
[1674248137727,31.08,24.133,24.093,13.54568963]
[1674248137961,20.0,24.132,24.093,13.54568963]
[1674248138144,10.0,24.119,24.093,13.54568963]
[1674248138566,10.0,24.115,24.08,23.28]
[1674248138775,10.0,24.108,24.088,13.54568963]
[1674248138995,10.0,24.108,24.081,51.15]
[1674248138996,10.0,24.108,24.091,13.54568963]
[1674248139212,10.0,24.115,24.081,20.0]
[1674248139427,52.07,24.114,24.081,20.0]
[1674248139637,52.07,24.114,24.093,10.0]
[1674248140247,20.96,24.114,24.096,10.0]
[1674248140569,20.0,24.114,24.096,10.0]
[1674248140772,20.0,24.126,24.096,10.0]
[1674248140983,31.09,24.125,24.096,10.0]
[1674248141188,20.0,24.124,24.096,10.0]
[1674248141510,2.28179,24.125,24.11,23.48]
[1674248141737,10.0,24.131,24.111,31.11]
[1674248142045,10.0,24.114,24.112,20.0]
[1674248142262,10.0,24.131,24.112,20.0]
[1674248142458,10.0,24.131,24.12,23.48]
[1674248142679,10.0,24.127,24.121,20.0]
[1674248142985,10.0,24.131,24.121,20.0]
[1674248143201,10.0,24.125,24.122,30.54568963]
[1674248143520,10.0,24.138,24.123,20.0]
[1674248143735,10.0,24.138,24.124,17.0]
[1674248143957,10.0,24.138,24.13,23.48]
[1674248144252,110.0389,24.167,24.131,51.09]
[1674248144669,31.03,24.177,24.132,31.50568963]
[1674248144886,31.03,24.178,24.133,51.08]
[1674248145083,10.0,24.14,24.134,17.96]
[1674248145299,10.0,24.14,24.135,31.08]
[1674248145514,31.03,24.178,24.135,44.62568963]
[1674248145737,31.03,24.178,24.131,20.0]
[1674248145738,31.03,24.178,24.136,33.54568963]
[1674248145945,31.01,24.189,24.137,31.08]
[1674248146147,6.14882099,24.188,24.138,20.0]
[1674248146359,10.0,24.151,24.139,31.08]
[1674248146565,10.0,24.151,24.14,37.0]
[1674248147001,31.01,24.187,24.14,37.0]
[1674248147312,31.01,24.189,24.14,20.0]
[1674248147510,10.0,24.162,24.14,20.0]
[1674248147720,10.0,24.162,24.139,13.54568963]
[1674248147940,10.0,24.162,24.14,20.0]
[1674248148158,10.0,24.162,24.141,13.54568963]
[1674248148685,31.01,24.189,24.142,37.0]
[1674248148871,10.0,24.177,24.142,20.0]
[1674248149081,31.03,24.176,24.134,10.0]
[1674248149289,81.33983916,24.176,24.14,13.54568963]
[1674248149504,81.33983916,24.176,24.134,10.0]
[1674248149505,53.51650582,24.175,24.134,10.0]
[1674248149720,33.64826,24.174,24.134,10.0]
[1674248149941,33.64826,24.174,24.137,10.0]
[1674248149942,22.61826,24.173,24.137,10.0]
[1674248150135,33.64657,24.172,24.137,10.0]
[1674248150341,33.64657,24.172,24.093,69.2652298]
[1674248150342,93.95,24.16,24.122,7.62]
[1674248150664,20.0,24.133,24.122,7.62]
[1674248150868,31.08,24.132,24.122,7.62]
[1674248151092,37.96,24.131,24.122,7.62]
[1674248151291,31.09,24.13,24.122,7.62]
[1674248151495,17.96,24.129,24.08,23.48]
[1674248151710,7.62,24.122,24.08,23.48]
[1674248151938,52.06,24.121,24.08,23.48]
[1674248152124,17.0,24.12,24.08,23.48]
[1674248152344,52.06,24.119,24.08,23.48]
[1674248152555,17.0,24.118,24.08,23.48]
[1674248152800,52.06,24.117,24.08,23.48]
[1674248153194,127.23107469,24.117,24.108,10.0]
[1674248153395,98.9268442,24.116,24.07,23.48]
[1674248153607,52.07,24.115,24.07,23.48]
[1674248153812,2.28123,24.114,24.061,31.18]
[1674248154022,32.07,24.113,24.061,31.18]
[1674248154232,20.0,24.112,24.061,31.18]
[1674248154452,31.11,24.111,24.098,10.0]
[1674248154653,37.0,24.11,24.064,9.694]
[1674248154874,31.11,24.109,24.063,9.694]
[1674248155079,20.0,24.108,24.064,2.61352]
[1674248155293,31.11,24.109,24.065,9.694]
[1674248155512,31.11,24.109,24.066,2.61331]
[1674248155836,31.11,24.109,24.065,19.694]
[1674248155837,43.75576951,24.108,24.065,10.0]
[1674248156043,33.39954,24.107,24.065,10.0]
[1674248156234,37.0,24.106,24.065,10.0]
[1674248156441,33.40123,24.105,24.065,10.0]
[1674248156662,37.96,24.104,24.081,10.0]
[1674248156883,31.12,24.103,24.081,10.0]
[1674248157101,31.11,24.113,24.081,10.0]
[1674248157636,10.0,24.114,24.082,20.0]
[1674248157831,10.0,24.114,24.082,37.0]
[1674248157832,31.11,24.113,24.082,37.0]
[1674248158151,10.0,24.109,24.082,20.0]
[1674248158350,10.0,24.109,24.081,10.0]
[1674248158555,31.12,24.108,24.081,10.0]
[1674248158773,31.11,24.113,24.081,10.0]
[1674248158970,10.0,24.108,24.081,10.0]
[1674248159186,31.12,24.107,24.081,10.0]
[1674248159730,20.0,24.106,24.081,10.0]
[1674248159916,31.12,24.105,24.081,10.0]
[1674248160348,54.87576951,24.105,24.081,10.0]
[1674248160547,54.87576951,24.105,24.083,10.0]
[1674248160548,39.9109142,24.104,24.083,10.0]
[1674248160781,31.12,24.103,24.083,10.0]
[1674248161001,31.12,24.104,24.083,10.0]
[1674248161186,31.12,24.105,24.083,10.0]
[1674248162130,23.75576951,24.113,24.083,10.0]
[1674248162333,10.0,24.106,24.084,13.54568963]
[1674248162767,10.0,24.106,24.085,20.0]
[1674248163183,31.1,24.118,24.085,20.0]
[1674248163400,10.0,24.119,24.086,13.54568963]
[1674248163615,31.1,24.118,24.086,13.54568963]
[1674248164051,10.0,24.104,24.086,13.54568963]
[1674248164864,10.0,24.104,24.076,9.313]
[1674248165080,10.0,24.104,24.076,13.54568963]
[1674248165507,10.0,24.104,24.075,10.0]
[1674248165703,31.12,24.103,24.087,10.0]
[1674248165914,31.11,24.109,24.087,10.0]
[1674248166141,17.96,24.108,24.087,10.0]
[1674248166349,31.12,24.107,24.087,10.0]
[1674248166547,17.96,24.106,24.087,10.0]
[1674248166756,51.12,24.105,24.087,10.0]
[1674248166967,17.96,24.104,24.087,10.0]
[1674248167178,23.48,24.12,24.087,10.0]
[1674248167179,31.11,24.114,24.087,10.0]
[1674248167504,31.11,24.116,24.087,13.54568963]
[1674248167716,31.11,24.116,24.081,9.658]
[1674248167924,31.11,24.116,24.082,47.09137926]
[1674248168135,10.0,24.117,24.082,47.09137926]
[1674248168136,10.0,24.105,24.083,26.657]
[1674248168349,10.0,24.117,24.083,30.54568963]
[1674248168560,10.0,24.117,24.084,34.50568963]
[1674248168869,10.0,24.117,24.084,20.0]
[1674248169068,10.0,24.115,24.088,10.0]
[1674248169284,32.07,24.114,24.088,10.0]
[1674248170030,17.0,24.113,24.088,10.0]
[1674248170236,10.0,24.115,24.089,20.0]
[1674248170553,10.0,24.113,24.09,23.28]
[1674248170758,10.0,24.113,24.091,20.0]
[1674248171085,10.0,24.115,24.092,13.54568963]
[1674248171391,31.09,24.124,24.093,20.0]
[1674248171584,152.6346,24.127,24.094,17.96]
[1674248171796,121.5446,24.127,24.095,20.0]
[1674248172011,121.5446,24.127,24.096,17.96]
[1674248172220,121.5446,24.127,24.096,31.50568963]
[1674248172426,121.5446,24.127,24.095,10.0]
[1674248172637,51.09,24.125,24.095,10.0]
[1674248173474,31.09,24.125,24.095,23.54568963]
[1674248173693,10.0,24.124,24.094,10.0]
[1674248173920,31.1,24.123,24.095,20.0]
[1674248174115,10.0,24.122,24.096,10.0]
[1674248174319,31.1,24.121,24.094,10.0]
[1674248174531,10.0,24.12,24.095,20.0]
[1674248174736,51.1,24.119,24.083,10.0]
[1674248175490,10.0,24.117,24.073,10.0]
[1674248175707,23.48,24.11,24.073,10.0]
[1674248175925,31.11,24.109,24.073,10.0]
[1674248176109,58.91376681,24.116,24.073,10.0]
[1674248176110,37.96,24.108,24.073,10.0]
[1674248176313,31.12,24.107,24.073,10.0]
[1674248176541,10.0,24.105,24.073,10.0]
[1674248176759,49.08,24.104,24.073,10.0]
[1674248177051,10.0,24.103,24.073,10.0]
[1674248177368,49.08,24.102,24.073,10.0]
[1674248177578,10.0,24.101,24.073,10.0]
[1674248177900,49.09,24.1,24.073,10.0]
[1674248178104,49.09,24.1,24.069,10.0]
[1674248178537,10.0,24.099,24.069,10.0]
[1674248178859,68.13,24.098,24.069,10.0]
[1674248179064,0.96,24.097,24.069,10.0]
[1674248179386,10.0,24.095,24.064,10.0]
[1674248179582,23.3,24.09,24.056,10.0]
[1674248179906,69.1,24.089,24.056,10.0]
[1674248180117,69.1,24.089,24.056,23.54568963]
[1674248180432,69.1,24.089,24.056,10.0]
[1674248180623,69.1,24.089,24.055,41.75]
[1674248180624,10.0,24.088,24.055,41.75]
[1674248180829,51.14,24.087,24.053,41.75]
[1674248181060,17.96,24.086,24.053,41.75]
[1674248181270,51.15,24.085,24.053,41.75]
[1674248181466,10.0,24.079,24.053,41.75]
[1674248181673,51.15,24.078,24.05,10.0]
[1674248181886,51.15,24.078,24.031,10.16]
[1674248181887,23.48,24.07,24.022,10.17]
[1674248182105,23.48,24.07,24.02,23.32]
[1674248182106,49.13,24.069,24.021,10.17]
[1674248182422,32.13,24.069,24.043,10.0]
[1674248182635,17.0,24.068,24.043,10.0]
[1674248182858,0.96,24.067,24.043,10.0]
[1674248183069,31.16,24.077,24.043,10.0]
[1674248183257,20.0,24.076,24.043,10.0]
[1674248183469,41.16,24.075,24.043,10.0]
[1674248183693,31.16,24.075,24.044,20.0]
[1674248183904,31.16,24.077,24.044,30.16]
[1674248184105,10.0,24.079,24.044,30.16]
[1674248184311,10.0,24.079,24.045,10.0]
[1674248184539,51.15,24.078,24.045,10.0]
[1674248184940,10.0,24.077,24.045,10.0]
[1674248185147,20.0,24.076,24.045,10.0]
[1674248185361,2.4907,24.075,24.045,10.0]
[1674248185581,2.4907,24.075,24.05,23.48]
[1674248185800,2.4907,24.075,24.051,30.11]
[1674248185991,2.4907,24.075,24.051,43.65568963]
[1674248186201,2.4907,24.075,24.052,13.54568963]
[1674248186426,2.4907,24.075,24.054,10.0]
[1674248186637,2.4907,24.075,24.055,48.07]
[1674248186844,2.4907,24.075,24.055,61.61568963]
[1674248187056,2.4907,24.075,24.06,23.48]
[1674248187269,2.4907,24.075,24.061,47.714]
[1674248187477,10.0,24.096,24.062,10.0]
[1674248187671,10.0,24.096,24.063,47.714]
[1674248187887,31.12,24.108,24.07,23.44]
[1674248188117,110.0314,24.109,24.071,47.71]
[1674248188323,110.0314,24.109,24.071,61.25568963]
[1674248188542,10.0,24.108,24.072,23.54568963]
[1674248188727,10.0,24.108,24.073,47.71]
[1674248188936,10.0,24.108,24.08,23.44]
[1674248189142,10.0,24.108,24.081,20.0]
[1674248189695,10.0,24.108,24.082,10.0]
[1674248189884,10.0,24.108,24.083,20.0]
[1674248190340,10.0,24.108,24.076,10.0]
[1674248190639,10.0,24.108,24.077,17.96]
[1674248190958,10.0,24.108,24.072,10.0]
[1674248190959,31.12,24.107,24.072,10.0]
[1674248191142,20.0,24.106,24.073,17.96]
[1674248191347,10.0,24.105,24.074,10.0]
[1674248191564,10.0,24.105,24.075,17.0]
[1674248191774,10.0,24.105,24.076,20.0]
[1674248191996,10.0,24.105,24.076,33.54568963]
[1674248192207,10.0,24.105,24.076,13.54568963]
[1674248192630,10.0,24.105,24.072,10.0]
[1674248192830,10.0,24.105,24.073,20.0]
[1674248192831,31.12,24.104,24.073,20.0]
[1674248193036,17.96,24.103,24.073,20.0]
[1674248193359,10.0,24.101,24.074,10.0]
[1674248193567,17.96,24.1,24.075,20.0]
[1674248193766,17.96,24.1,24.075,33.54568963]
[1674248193976,10.0,24.105,24.076,44.09137926]
[1674248194213,10.0,24.105,24.076,13.54568963]
[1674248194419,10.0,24.105,24.072,10.0]
[1674248194645,31.12,24.104,24.069,13.54568963]
[1674248194969,31.12,24.104,24.064,9.698]
[1674248194970,10.0,24.103,24.071,13.54568963]
[1674248195173,10.0,24.103,24.072,20.0]
[1674248195393,10.0,24.103,24.073,19.694]
[1674248195601,10.0,24.103,24.074,20.0]
[1674248195787,10.0,24.103,24.074,33.54568963]
[1674248195998,10.0,24.103,24.075,14.50568963]
[1674248196230,10.0,24.103,24.077,10.0]
[1674248196437,10.0,24.103,24.078,17.96]
[1674248196749,10.0,24.103,24.079,20.0]
[1674248197069,10.0,24.103,24.08,30.54568963]
[1674248197285,10.0,24.103,24.081,20.0]
[1674248197478,10.0,24.103,24.082,17.0]
[1674248197696,10.0,24.103,24.083,20.0]
[1674248197899,10.0,24.103,24.083,33.54568963]
[1674248198224,10.0,24.103,24.083,20.0]
[1674248198425,10.0,24.105,24.084,17.0]
[1674248198632,10.0,24.105,24.086,10.0]
[1674248198838,10.0,24.106,24.087,17.0]
[1674248199065,10.0,24.108,24.087,17.0]
[1674248199282,10.0,24.108,24.088,10.0]
[1674248199474,10.0,24.108,24.089,17.0]
[1674248199686,10.0,24.113,24.091,10.0]
[1674248199890,10.0,24.113,24.092,17.0]
[1674248200120,10.0,24.118,24.092,17.0]
[1674248200307,10.0,24.118,24.093,44.39568963]
[1674248200522,31.09,24.127,24.094,17.96]
[1674248200747,10.0,24.126,24.095,20.0]
[1674248201066,31.09,24.125,24.095,33.54568963]
[1674248201266,10.0,24.126,24.095,20.0]
[1674248201474,10.0,24.126,24.096,10.0]
[1674248201689,10.0,24.126,24.096,40.54568963]
[1674248201882,10.0,24.126,24.097,0.96]
[1674248202098,10.0,24.126,24.098,9.557]
[1674248202308,10.0,24.126,24.1,23.48]
[1674248202521,10.0,24.127,24.101,47.515]
[1674248202860,10.0,24.137,24.101,46.555]
[1674248203068,31.08,24.136,24.101,46.555]
[1674248203274,10.0,24.137,24.101,46.555]
[1674248203676,10.0,24.137,24.101,37.0]
[1674248203677,31.08,24.136,24.101,37.0]
[1674248203913,31.08,24.136,24.102,10.0]
[1674248204104,54.55716965,24.135,24.102,10.0]
[1674248204318,31.08,24.134,24.102,10.0]
[1674248204629,23.48,24.13,24.102,10.0]
[1674248204854,32.05,24.129,24.096,10.0]
[1674248205050,17.0,24.128,24.096,10.0]
[1674248205264,32.05,24.127,24.088,23.54568963]
[1674248205589,17.0,24.126,24.088,10.0]
[1674248205798,52.05,24.125,24.088,10.0]
[1674248206011,17.0,24.124,24.088,10.0]
[1674248206200,31.1,24.123,24.088,23.54568963]
[1674248206413,10.0,24.127,24.088,23.54568963]
[1674248206624,10.0,24.123,24.089,9.806]
[1674248206835,113.1506,24.133,24.09,23.48]
[1674248207049,33.35954,24.132,24.091,10.766]
[1674248207259,2.27954,24.131,24.092,20.0]
[1674248207571,2.27954,24.131,24.1,23.48]
[1674248207790,2.27954,24.131,24.093,26.805]
[1674248207791,31.08,24.132,24.101,20.0]
[1674248208007,31.08,24.132,24.092,10.0]
[1674248208231,10.0,24.131,24.093,20.0]
[1674248208528,54.57,24.13,24.088,10.0]
[1674248208727,20.0,24.129,24.089,2.61081]
[1674248208935,49.05,24.128,24.089,2.61081]
[1674248209154,10.0,24.126,24.081,19.576]
[1674248209351,23.48,24.12,24.074,9.578]
[1674248209558,49.06,24.119,24.077,12.61211]
[1674248209772,49.06,24.119,24.071,19.58]
[1674248209773,120.62442251,24.119,24.078,2.61201]
[1674248210000,23.48,24.11,24.071,10.0]
[1674248210190,195.4754,24.109,24.071,10.0]
[1674248210402,10.0,24.108,24.074,13.54568963]
[1674248210735,69.08,24.107,24.075,20.0]
[1674248211166,51.12,24.107,24.076,23.54568963]
[1674248211685,51.12,24.107,24.077,13.54568963]
[1674248211897,51.12,24.107,24.078,10.0]
[1674248212318,51.12,24.107,24.079,30.54568963]
[1674248212510,17.96,24.106,24.079,30.54568963]
[1674248212721,10.0,24.104,24.08,23.54568963]
[1674248212939,17.96,24.103,24.08,13.54568963]
[1674248213141,41.12,24.102,24.076,10.0]
[1674248213357,17.96,24.101,24.076,10.0]
[1674248213556,17.96,24.101,24.077,13.54568963]
[1674248213766,17.96,24.101,24.071,10.0]
[1674248213976,10.0,24.099,24.06,23.48]
[1674248214213,51.13,24.098,24.07,13.54568963]
[1674248214408,0.96,24.097,24.071,20.0]
[1674248214620,0.96,24.097,24.072,10.0]
[1674248214825,0.96,24.098,24.073,20.0]
[1674248215027,10.0,24.097,24.074,10.0]
[1674248215234,0.96,24.096,24.075,20.0]
[1674248215449,0.96,24.096,24.063,10.26]
[1674248215677,0.96,24.096,24.069,13.54568963]
[1674248215678,31.13,24.095,24.069,13.54568963]
[1674248215990,10.0,24.093,24.06,23.44]
[1674248216186,10.0,24.093,24.062,23.54568963]
[1674248216187,17.0,24.092,24.062,23.54568963]
[1674248216395,0.96,24.091,24.062,23.54568963]
[1674248216606,31.14,24.09,24.062,10.0]
[1674248216827,10.0,24.088,24.062,10.0]
[1674248217034,49.1,24.087,24.062,10.0]
[1674248217252,49.1,24.087,24.065,20.0]
[1674248217459,49.1,24.087,24.057,10.0]
[1674248217662,20.0,24.086,24.06,13.54568963]
[1674248217864,32.11,24.085,24.057,10.0]
[1674248218089,17.0,24.084,24.061,37.09137926]
[1674248218295,0.96,24.083,24.061,23.54568963]
[1674248218727,10.96,24.084,24.061,10.0]
[1674248218938,17.0,24.083,24.061,10.0]
[1674248219131,0.96,24.082,24.061,10.0]
[1674248219459,0.96,24.082,24.062,13.54568963]
[1674248219874,0.96,24.083,24.062,13.54568963]
[1674248220192,0.96,24.083,24.063,30.0]
[1674248220404,31.13,24.096,24.063,30.0]
[1674248220594,31.13,24.096,24.064,13.54568963]
[1674248220810,31.13,24.096,24.065,20.0]
[1674248221021,10.0,24.1,24.066,10.0]
[1674248221231,31.13,24.098,24.067,20.0]
[1674248221449,10.0,24.1,24.068,10.0]
[1674248221663,10.0,24.1,24.069,37.0]
[1674248221664,41.13,24.1,24.069,37.0]
[1674248221878,41.13,24.1,24.069,13.54568963]
[1674248222073,31.13,24.096,24.066,10.0]